fUST/lending_fUST_20250529
["ID","MTS","AMOUNT","RATE_DAILY","PERIOD"]
[362872088,1748502646813,-430.0,0.00019726,2]
[362872089,1748502646822,-693.43,0.00019726,2]
[362872090,1748502646832,-430.0,0.00019726,2]
[362872091,1748502646841,-430.0,0.00019726,2]
[362872092,1748502646851,-430.0,0.00019726,2]
[362872093,1748502646861,-551.80834776,0.00019726,2]
[362872094,1748502646870,-620.73,0.00019726,2]
[362872095,1748502646880,-430.0,0.00019726,2]
[362872096,1748502646889,-430.0,0.00019726,2]
[362872097,1748502646899,-430.0,0.00019726,2]
[362872098,1748502646908,-430.0,0.00019726,2]
[362872099,1748502646918,-525.79,0.00019726,2]
[362872100,1748502646929,-430.0,0.00019726,2]
[362872101,1748502646938,-315.64459367,0.00019726,2]
[362872102,1748502646948,-769.09,0.00019726,2]
[362872103,1748502646958,-430.0,0.00019726,2]
[362872104,1748502646967,-430.0,0.00019726,2]
[362872105,1748502646977,-430.0,0.00019726,2]
[362872106,1748502646986,-430.0,0.00019726,2]
[362872107,1748502646996,-430.0,0.00019726,2]
[362872108,1748502647006,-430.0,0.00019726,2]
[362872109,1748502647015,-602.51,0.00019726,2]
[362872110,1748502647025,-430.0,0.00019726,2]
[362872111,1748502647034,-486.16070835,0.00019726,2]
[362872112,1748502647045,-430.0,0.00019726,2]
[362872113,1748502647055,-430.0,0.00019726,2]
[362872114,1748502647065,-346.91551838,0.00019726,2]
[362872115,1748502647074,-430.0,0.00019726,2]
[362872116,1748502647083,-1859.43,0.00019726,2]
[362872117,1748502647092,-767.83,0.00019726,2]
[362872118,1748502647102,-1338.57,0.00019726,2]
[362872119,1748502647111,-430.0,0.00019726,2]
[362872120,1748502647121,-430.0,0.00019726,2]
[362872121,1748502647130,-430.0,0.00019726,2]
[362872122,1748502647140,-430.0,0.00019726,2]
[362872123,1748502647150,-430.0,0.00019726,2]
[362872124,1748502647159,-430.0,0.00019726,2]
[362872125,1748502647169,-333.06493381,0.00019726,2]
[362872126,1748502647179,-1861.14,0.00019726,2]
[362872127,1748502647189,-430.0,0.00019726,2]
[362872128,1748502647199,-440.55603492,0.00019726,2]
[362872129,1748502647208,-599.54,0.00019726,2]
[362872130,1748502647217,-430.0,0.00019726,2]
[362872131,1748502647226,-338.85150036,0.00019726,2]
[362872132,1748502647236,-622.98,0.00019726,2]
[362872133,1748502647245,-430.0,0.00019726,2]
[362872134,1748502647257,-452.99308726,0.00019726,2]
[362872135,1748502647267,-458.19,0.00019726,2]
[362872136,1748502647277,-430.0,0.00019726,2]
[362872137,1748502647286,-430.0,0.00019726,2]
[362872138,1748502647296,-430.0,0.00019726,2]
[362872139,1748502647305,-430.0,0.00019726,2]
[362872140,1748502647315,-3240.33,0.00019726,2]
[362872141,1748502647326,-430.0,0.00019726,2]
[362872142,1748502647336,-820.22,0.00019726,2]
[362872143,1748502647346,-3037.75,0.00019726,2]
[362872144,1748502647355,-430.0,0.00019726,2]
[362872145,1748502647365,-430.0,0.00019726,2]
[362872146,1748502647374,-2923.1,0.000199,2]
[362872147,1748502647384,-2923.1,0.000199,2]
[362872148,1748502647393,-2923.1,0.000199,2]
[362872149,1748502647403,-2923.1,0.000199,2]
[362872150,1748502647412,-2923.1,0.000199,2]
[362872151,1748502647421,-1523.82900065,0.000199,2]
[362872152,1748502647431,-448.1433309,0.000199,2]
[362872153,1748502647440,-1000.0,0.00019921,2]
[362872154,1748502647450,-1004.82481693,0.00019921,2]
[362872155,1748502647461,-1000.0,0.00019921,2]
[362872156,1748502647470,-1000.0,0.00019921,2]
[362872157,1748502647479,-227.41444053,0.0002,5]
[362872158,1748502647489,-512.89,0.0002,2]
[362872159,1748502647499,-835.93,0.0002,2]
[362872160,1748502647508,-430.0,0.0002,2]
[362872161,1748502647517,-430.0,0.0002,2]
[362872162,1748502647527,-430.0,0.0002,2]
[362872163,1748502647536,-430.0,0.0002,2]
[362872164,1748502647546,-734.54,0.0002,2]
[362872165,1748502647555,-158.33,0.0002,2]
[362872166,1748502647564,-430.0,0.0002,2]
[362872167,1748502647574,-430.0,0.0002,2]
[362872168,1748502647583,-430.0,0.0002,2]
[362872169,1748502647592,-339.76094807,0.0002,2]
[362872170,1748502647602,-430.0,0.0002,2]
[362872171,1748502647611,-430.0,0.0002,2]
[362872172,1748502647620,-1868.89,0.0002,2]
[362872173,1748502647629,-430.0,0.0002,2]
[362872174,1748502647638,-466.94882914,0.0002,2]
[362872175,1748502647647,-430.0,0.0002,2]
[362872176,1748502647656,-430.0,0.0002,2]
[362872177,1748502647665,-430.0,0.0002,2]
[362872178,1748502647674,-1175.42,0.0002,2]
[362872179,1748502647685,-430.0,0.0002,2]
[362872180,1748502647694,-1527.84,0.0002,2]
[362872181,1748502647703,-517.75836595,0.0002,2]
[362872182,1748502647713,-430.0,0.0002,2]
[362872183,1748502647722,-633.39,0.0002,2]
[362872184,1748502647731,-430.0,0.0002,2]
[362872185,1748502647740,-693.43,0.0002,2]
[362872186,1748502647750,-430.0,0.0002,2]
[362872187,1748502647759,-430.0,0.0002,2]
[362872188,1748502647769,-620.73,0.0002,2]
[362872189,1748502647778,-430.0,0.0002,2]
[362872190,1748502647787,-430.0,0.0002,2]
[362872191,1748502647796,-430.0,0.0002,2]
[362872192,1748502647805,-430.0,0.0002,2]
[362872193,1748502647815,-525.79,0.0002,2]
[362872194,1748502647824,-430.0,0.0002,2]
[362872195,1748502647833,-769.09,0.0002,2]
[362872196,1748502647842,-245.22146804,0.0002,2]
[362872197,1748502647851,-430.0,0.0002,2]
[362872198,1748502647860,-430.0,0.0002,2]
[362872199,1748502647870,-430.0,0.0002,2]
[362872200,1748502647880,-430.0,0.0002,2]
[362872201,1748502647889,-602.51,0.0002,2]
[362872202,1748502647899,-430.0,0.0002,2]
[362872203,1748502647909,-244.96563038,0.0002,2]
[362872204,1748502647917,-430.0,0.0002,2]
[362872205,1748502647927,-1859.43,0.0002,2]
[362872206,1748502647937,-767.83,0.0002,2]
[362872207,1748502647947,-1338.57,0.0002,2]
[362872208,1748502647956,-430.0,0.0002,2]
[362872209,1748502647966,-438.38242655,0.0002,2]
[362872210,1748502647976,-430.0,0.0002,2]
[362872211,1748502647986,-430.0,0.0002,2]
[362872212,1748502647995,-1861.14,0.0002,2]
[362872213,1748502648005,-430.0,0.0002,2]
[362872214,1748502648014,-599.54,0.0002,2]
[362872215,1748502648024,-430.0,0.0002,2]
[362872216,1748502648033,-622.98,0.0002,2]
[362872217,1748502648042,-430.0,0.0002,2]
[362872218,1748502648051,-458.19,0.0002,2]
[362872219,1748502648060,-430.0,0.0002,2]
[362872220,1748502648070,-349.49,0.0002,2]
[362872221,1748502648080,-430.0,0.0002,2]
[362872222,1748502648090,-3240.33,0.0002,2]
[362872223,1748502648099,-430.0,0.0002,2]
[362872224,1748502648109,-820.22,0.0002,2]
[362872225,1748502648119,-3037.75,0.0002,2]
[362872226,1748502648129,-430.0,0.0002,2]
[362872227,1748502648139,-505.17543987,0.0002,2]
[362872228,1748502648149,-500.0,0.0002,2]
[362872229,1748502648159,-264.07597556,0.00020021,2]
[362872230,1748502648168,-1000.0,0.00020021,2]
[362872231,1748502648178,-588.50354762,0.00020021,2]
[362872232,1748502648189,-1000.0,0.00020021,2]
[362872233,1748502648198,-1000.0,0.00020021,2]
[362872234,1748502648207,-1000.0,0.00020021,2]
[362872235,1748502648217,-1000.0,0.00020021,2]
[362872236,1748502648227,-500.0,0.0002004,2]
[362872237,1748502648237,-503.64016206,0.0002004,2]
[362872238,1748502648248,-448.1433307,0.00020072,2]
[362872239,1748502648258,-250.07019822,0.000201,2]
[362872240,1748502648268,-448.1433307,0.00020245,2]
[362872241,1748502648279,-5000.0,0.00020256,2]
[362872242,1748502648289,-512.89,0.00020273,2]
[362872243,1748502648300,-835.93,0.00020273,2]
[362872244,1748502648310,-430.0,0.00020273,2]
[362872245,1748502648320,-430.0,0.00020273,2]
[362872246,1748502648330,-430.0,0.00020273,2]
[362872247,1748502648340,-447.41139141,0.00020273,2]
[362872248,1748502648350,-734.54,0.00020273,2]
[362872249,1748502648360,-430.0,0.00020273,2]
[362872250,1748502648370,-430.0,0.00020273,2]
[362872251,1748502648379,-430.0,0.00020273,2]
[362872252,1748502648389,-430.0,0.00020273,2]
[362872253,1748502648399,-1868.89,0.00020273,2]
[362872254,1748502648408,-430.0,0.00020273,2]
[362872255,1748502648418,-430.0,0.00020273,2]
[362872256,1748502648428,-430.0,0.00020273,2]
[362872257,1748502648439,-430.0,0.00020273,2]
[362872258,1748502648449,-1175.42,0.00020273,2]
[362872259,1748502648459,-574.41539997,0.00020273,2]
[362872260,1748502648472,-1527.84,0.00020273,2]
[362872261,1748502648481,-430.0,0.00020273,2]
[362872262,1748502648491,-633.39,0.00020273,2]
[362872263,1748502648501,-430.0,0.00020273,2]
[362872264,1748502648511,-693.43,0.00020273,2]
[362872265,1748502648520,-430.0,0.00020273,2]
[362872266,1748502648529,-430.0,0.00020273,2]
[362872267,1748502648540,-620.73,0.00020273,2]
[362872268,1748502648550,-430.0,0.00020273,2]
[362872269,1748502648559,-293.51702833,0.00020273,2]
[362872270,1748502648569,-430.0,0.00020273,2]
[362872271,1748502648579,-430.0,0.00020273,2]
[362872272,1748502648588,-525.79,0.00020273,2]
[362872273,1748502648598,-430.0,0.00020273,2]
[362872274,1748502648608,-769.09,0.00020273,2]
[362872275,1748502648617,-430.0,0.00020273,2]
[362872276,1748502648626,-430.0,0.00020273,2]
[362872277,1748502648636,-151.0,0.00020273,2]
[362872278,1748502648645,-430.0,0.00020273,2]
[362872279,1748502648654,-430.0,0.00020273,2]
[362872280,1748502648664,-602.51,0.00020273,2]
[362872281,1748502648673,-359.64031325,0.00020273,2]
[362872282,1748502648683,-1859.43,0.00020273,2]
[362872283,1748502648693,-767.83,0.00020273,2]
[362872284,1748502648702,-1338.57,0.00020273,2]
[362872285,1748502648712,-430.0,0.00020273,2]
[362872286,1748502648722,-430.0,0.00020273,2]
[362872287,1748502648732,-430.0,0.00020273,2]
[362872288,1748502648741,-151.0,0.00020273,2]
[362872289,1748502648751,-1861.14,0.00020273,2]
[362872290,1748502648761,-430.0,0.00020273,2]
[362872291,1748502648770,-599.54,0.00020273,2]
[362872292,1748502648779,-430.0,0.00020273,2]
[362872293,1748502648788,-622.98,0.00020273,2]
[362872294,1748502648797,-430.0,0.00020273,2]
[362872295,1748502648807,-458.19,0.00020273,2]
[362872296,1748502648817,-430.0,0.00020273,2]
[362872297,1748502648827,-3240.33,0.00020273,2]
[362872298,1748502648836,-430.0,0.00020273,2]
[362872299,1748502648846,-820.22,0.00020273,2]
[362872300,1748502648855,-3037.75,0.00020273,2]
[362872301,1748502648865,-430.0,0.00020273,2]
[362872302,1748502648875,-448.1433307,0.00020417,3]
[362872303,1748502648883,-1500.0,0.00020468,2]
[362872304,1748502648891,-500.0,0.00020468,2]
[362872305,1748502648901,-505.14559696,0.00020468,2]
[362872306,1748502649006,-151.0,0.00020509,2]
[362872307,1748502649016,-151.0,0.00020509,2]
[362872308,1748502649026,-151.0,0.00020509,2]
[362872309,1748502649036,-151.0,0.00020509,2]
[362872310,1748502649046,-151.0,0.00020509,2]
[362872311,1748502649055,-151.0,0.00020509,2]
[362872312,1748502649065,-151.0,0.00020509,2]
[362872313,1748502649074,-151.0,0.00020509,2]
[362872314,1748502649084,-151.0,0.00020509,2]
[362872315,1748502649093,-152.935896,0.00020509,2]
[362872316,1748502649103,-151.0,0.00020509,2]
[362872317,1748502649112,-151.0,0.00020509,2]
[362872318,1748502649121,-1000.0,0.00020509,7]
[362872319,1748502649130,-1000.0,0.00020509,7]
[362872320,1748502649139,-1000.0,0.00020509,7]
[362872321,1748502649149,-1000.0,0.00020509,7]
[362872322,1748502649158,-1000.0,0.00020509,7]
[362872323,1748502649168,-1000.0,0.00020509,7]
[362872324,1748502649178,-1000.0,0.00020509,7]
[362872325,1748502649188,-1000.0,0.00020509,7]
[362872326,1748502649198,-1000.0,0.00020509,7]
[362872327,1748502649207,-1000.0,0.00020509,2]
[362872328,1748502649217,-1000.0,0.00020509,2]
[362872329,1748502649227,-1000.0,0.00020509,2]
[362872330,1748502649237,-1000.0,0.00020509,2]
[362872331,1748502649246,-1000.0,0.00020509,2]
[362872332,1748502649256,-1000.0,0.00020509,2]
[362872333,1748502649265,-1000.0,0.00020509,2]
[362872334,1748502649275,-1000.0,0.00020509,2]
[362872335,1748502649284,-1000.0,0.00020509,2]
[362872336,1748502649294,-3665.34,0.00020538,3]
[362872337,1748502649303,-2556.74,0.00020538,3]
[362872338,1748502649313,-1278.38,0.00020538,3]
[362872339,1748502649322,-639.18,0.00020538,3]
[362872340,1748502649332,-319.6,0.00020538,3]
[362872341,1748502649342,-12660.97845086,0.00020538,3]
[362872342,1748502649352,-842.5625,0.00020538,3]
[362872343,1748502649361,-8057.85024427,0.00020547,3]
[362872344,1748502649371,-512.89,0.00020547,2]
[362872345,1748502649381,-835.93,0.00020547,2]
[362872346,1748502649390,-430.0,0.00020547,2]
[362872347,1748502649400,-430.0,0.00020547,2]
[362872348,1748502649410,-430.0,0.00020547,2]
[362872349,1748502649419,-151.0,0.00020547,2]
[362872350,1748502649429,-151.0,0.00020547,2]
[362872351,1748502649439,-734.54,0.00020547,2]
[362872352,1748502649449,-151.0,0.00020547,2]
[362872353,1748502649462,-430.0,0.00020547,2]
[362872354,1748502649472,-430.0,0.00020547,2]
[362872355,1748502649482,-430.0,0.00020547,2]
[362872356,1748502649492,-430.0,0.00020547,2]
[362872357,1748502649502,-1868.89,0.00020547,2]
[362872358,1748502649511,-430.0,0.00020547,2]
[362872359,1748502649520,-430.0,0.00020547,2]
[362872360,1748502649531,-430.0,0.00020547,2]
[362872361,1748502649540,-530.03380034,0.00020547,2]
[362872362,1748502649549,-1175.42,0.00020547,2]
[362872363,1748502649558,-1527.84,0.00020547,2]
[362872364,1748502649568,-430.0,0.00020547,2]
[362872365,1748502649577,-633.39,0.00020547,2]
[362872366,1748502649587,-430.0,0.00020547,2]
[362872367,1748502649597,-693.43,0.00020547,2]
[362872368,1748502649606,-430.0,0.00020547,2]
[362872369,1748502649616,-430.0,0.00020547,2]
[362872370,1748502649627,-620.73,0.00020547,2]
[362872371,1748502649637,-430.0,0.00020547,2]
[362872372,1748502649646,-430.0,0.00020547,2]
[362872373,1748502649655,-430.0,0.00020547,2]
[362872374,1748502649665,-525.79,0.00020547,2]
[362872375,1748502649674,-430.0,0.00020547,2]
[362872376,1748502649685,-769.09,0.00020547,2]
[362872377,1748502649695,-430.0,0.00020547,2]
[362872378,1748502649704,-430.0,0.00020547,2]
[362872379,1748502649714,-430.0,0.00020547,2]
[362872380,1748502649723,-430.0,0.00020547,2]
[362872381,1748502649733,-602.51,0.00020547,2]
[362872382,1748502649742,-382.027593,0.00020547,2]
[362872383,1748502649751,-382.027593,0.00020547,2]
[362872384,1748502649760,-1859.43,0.00020547,2]
[362872385,1748502649770,-767.83,0.00020547,2]
[362872386,1748502649779,-1338.57,0.00020547,2]
[362872387,1748502649788,-430.0,0.00020547,2]
[362872388,1748502649798,-430.0,0.00020547,2]
[362872389,1748502649808,-430.0,0.00020547,2]
[362872390,1748502649817,-1861.14,0.00020547,2]
[362872391,1748502649827,-430.0,0.00020547,2]
[362872392,1748502649837,-599.54,0.00020547,2]
[362872393,1748502649847,-430.0,0.00020547,2]
[362872394,1748502649856,-622.98,0.00020547,2]
[362872395,1748502649866,-430.0,0.00020547,2]
[362872396,1748502649875,-458.19,0.00020547,2]
[362872397,1748502649885,-430.0,0.00020547,2]
[362872398,1748502649894,-3240.33,0.00020547,2]
[362872399,1748502649904,-430.0,0.00020547,2]
[362872400,1748502649914,-820.22,0.00020547,2]
[362872401,1748502649924,-3037.75,0.00020547,2]
[362872402,1748502649934,-451.16938754,0.00020547,2]
[362872403,1748502649944,-359.78564372,0.00020568,2]
[362872404,1748502649953,-500.0,0.00020568,2]
[362872405,1748502649963,-500.0,0.00020568,2]
[362872406,1748502649972,-1500.0,0.00020568,2]
[362872407,1748502649982,-570.15995727,0.00020588,2]
[362872408,1748502649991,-448.1433307,0.0002059,3]
[362872409,1748502650000,-17735.22926884,0.00020592,2]
[362872410,1748502650010,-538.33834844,0.00020592,2]
[362872411,1748502650019,-500.0,0.00020592,2]
[362872412,1748502650030,-600.0,0.00020592,2]
[362872413,1748502650039,-500.0,0.00020592,2]
[362872414,1748502650048,-500.0,0.00020592,2]
[362872415,1748502650058,-501.71650922,0.00020592,2]
[362872416,1748502650067,-500.0,0.00020592,2]
[362872417,1748502650076,-463.546,0.00020681,2]
[362872418,1748502650085,-448.1433307,0.00020762,3]
[362872419,1748502650095,-512.89,0.00020821,2]
[362872420,1748502650104,-835.93,0.00020821,2]
[362872421,1748502650115,-430.0,0.00020821,2]
[362872422,1748502650124,-357.16,0.00020821,2]
[362872423,1748502650134,-430.0,0.00020821,2]
[362872424,1748502650143,-151.0,0.00020821,2]
[362872425,1748502650154,-734.54,0.00020821,2]
[362872426,1748502650164,-151.0,0.00020821,2]
[362872427,1748502650173,-383.99637198,0.00020821,2]
[362872428,1748502650184,-169.91,0.00020821,2]
[362872429,1748502650193,-430.0,0.00020821,2]
[362872430,1748502650203,-430.0,0.00020821,2]
[362872431,1748502650213,-1868.89,0.00020821,2]
[362872432,1748502650222,-430.0,0.00020821,2]
[362872433,1748502650233,-430.0,0.00020821,2]
[362872434,1748502650242,-274.86100939,0.00020821,2]
[362872435,1748502650252,-1175.42,0.00020821,2]
[362872436,1748502650262,-1527.84,0.00020821,2]
[362872437,1748502650271,-430.0,0.00020821,2]
[362872438,1748502650281,-633.39,0.00020821,2]
[362872439,1748502650290,-430.0,0.00020821,2]
[362872440,1748502650299,-693.43,0.00020821,2]
[362872441,1748502650309,-430.0,0.00020821,2]
[362872442,1748502650318,-430.0,0.00020821,2]
[362872443,1748502650327,-620.73,0.00020821,2]
[362872444,1748502650337,-545.73315682,0.00020821,2]
[362872445,1748502650346,-430.0,0.00020821,2]
[362872446,1748502650355,-430.0,0.00020821,2]
[362872447,1748502650364,-525.79,0.00020821,2]
[362872448,1748502650374,-430.0,0.00020821,2]
[362872449,1748502650383,-769.09,0.00020821,2]
[362872450,1748502650393,-430.0,0.00020821,2]
[362872451,1748502650402,-430.0,0.00020821,2]
[362872452,1748502650412,-430.0,0.00020821,2]
[362872453,1748502650422,-430.0,0.00020821,2]
[362872454,1748502650432,-602.51,0.00020821,2]
[362872455,1748502650441,-1859.43,0.00020821,2]
[362872456,1748502650451,-767.83,0.00020821,2]
[362872457,1748502650464,-1338.57,0.00020821,2]
[362872458,1748502650473,-430.0,0.00020821,2]
[362872459,1748502650482,-430.0,0.00020821,2]
[362872460,1748502650492,-430.0,0.00020821,2]
[362872461,1748502650503,-1861.14,0.00020821,2]
[362872462,1748502650512,-430.0,0.00020821,2]
[362872463,1748502650521,-430.0,0.00020821,2]
[362872464,1748502650530,-599.54,0.00020821,2]
[362872465,1748502650542,-622.98,0.00020821,2]
[362872466,1748502650552,-430.0,0.00020821,2]
[362872467,1748502650562,-458.19,0.00020821,2]
[362872468,1748502650572,-430.0,0.00020821,2]
[362872469,1748502650582,-3240.33,0.00020821,2]
[362872470,1748502650594,-489.34539332,0.00020821,2]
[362872471,1748502650604,-820.22,0.00020821,2]
[362872472,1748502650615,-3037.75,0.00020821,2]
[362872473,1748502650625,-500.0,0.00020885,2]
[362872474,1748502650634,-151.0,0.00020885,2]
[362872475,1748502650643,-448.1433307,0.00020934,4]
[362872476,1748502650651,-500.0,0.00020978,2]
[362872477,1748502650661,-500.0,0.00020978,2]
[362872478,1748502650670,-419.54407226,0.00020978,2]
[362872479,1748502650679,-502.27571044,0.00020978,2]
[362872480,1748502650689,-500.0,0.00020978,2]
[362872481,1748502650699,-500.0,0.00020978,2]
[362872482,1748502650708,-500.0,0.00021016,2]
[362872483,1748502650717,-160.0,0.00021094,2]
[362872484,1748502650726,-155.0,0.00021095,2]
[362872485,1748502650736,-512.89,0.00021095,2]
[362872486,1748502650745,-835.93,0.00021095,2]
[362872487,1748502650754,-153.877356,0.00021095,2]
[362872488,1748502650763,-199.743154,0.00021095,2]
[362872489,1748502650773,-152.852997,0.00021095,2]
[362872490,1748502650783,-151.0,0.00021095,2]
[362872491,1748502650794,-430.0,0.00021095,2]
[362872492,1748502650806,-1309.840553,0.00021095,2]
[362872493,1748502650817,-1309.840553,0.00021095,2]
[362872494,1748502650828,-430.0,0.00021095,2]
[362872495,1748502650840,-151.0,0.00021095,2]
[362872496,1748502650850,-734.54,0.00021095,2]
[362872497,1748502650859,-430.0,0.00021095,2]
[362872498,1748502650869,-430.0,0.00021095,2]
[362872499,1748502650878,-1868.89,0.00021095,2]
[362872500,1748502650887,-430.0,0.00021095,2]
[362872501,1748502650897,-430.0,0.00021095,2]
[362872502,1748502650907,-1175.42,0.00021095,2]
[362872503,1748502650916,-1527.84,0.00021095,2]
[362872504,1748502650924,-430.0,0.00021095,2]
[362872505,1748502650932,-633.39,0.00021095,2]
[362872506,1748502650940,-430.0,0.00021095,2]
[362872507,1748502650948,-693.43,0.00021095,2]
[362872508,1748502650956,-430.0,0.00021095,2]
[362872509,1748502650965,-430.0,0.00021095,2]
[362872510,1748502650974,-620.73,0.00021095,2]
[362872511,1748502650982,-430.0,0.00021095,2]
[362872512,1748502650991,-430.0,0.00021095,2]
[362872513,1748502651001,-525.79,0.00021095,2]
[362872514,1748502651010,-430.0,0.00021095,2]
[362872515,1748502651021,-769.09,0.00021095,2]
[362872516,1748502651030,-430.0,0.00021095,2]
[362872517,1748502651039,-430.0,0.00021095,2]
[362872518,1748502651049,-430.0,0.00021095,2]
[362872519,1748502651059,-430.0,0.00021095,2]
[362872520,1748502651068,-602.51,0.00021095,2]
[362872521,1748502651077,-1859.43,0.00021095,2]
[362872522,1748502651086,-767.83,0.00021095,2]
[362872523,1748502651095,-1338.57,0.00021095,2]
[362872524,1748502651104,-430.0,0.00021095,2]
[362872525,1748502651115,-185.94776078,0.00021095,2]
[362872526,1748502651125,-430.0,0.00021095,2]
[362872527,1748502651134,-1861.14,0.00021095,2]
[362872528,1748502651233,-430.0,0.00021095,2]
[362872529,1748502651243,-430.0,0.00021095,2]
[362872530,1748502651254,-599.54,0.00021095,2]
[362872531,1748502651263,-622.98,0.00021095,2]
[362872532,1748502651273,-430.0,0.00021095,2]
[362872533,1748502651283,-458.19,0.00021095,2]
[362872534,1748502651293,-430.0,0.00021095,2]
[362872535,1748502651302,-3240.33,0.00021095,2]
[362872536,1748502651312,-820.22,0.00021095,2]
[362872537,1748502651321,-3037.75,0.00021095,2]
[362872538,1748502651330,-1000.0,0.00021096,7]
[362872539,1748502651340,-212.70147903,0.00021096,7]
[362872540,1748502651350,-12660.97845086,0.00021096,7]
[362872541,1748502651360,-842.5625,0.00021096,7]
[362872542,1748502651369,-1000.0,0.00021096,2]
[362872543,1748502651379,-448.1433307,0.00021107,4]
[362872544,1748502651389,-2000.0,0.00021116,2]
[362872545,1748502651398,-151.0,0.00021117,2]
[362872546,1748502651408,-156.517148,0.00021117,2]
[362872547,1748502651417,-151.0,0.00021117,2]
[362872548,1748502651427,-151.0,0.00021117,2]
[362872549,1748502651437,-151.0,0.00021117,2]
[362872550,1748502651446,-151.0,0.00021117,2]
[362872551,1748502651458,-151.0,0.00021117,2]
[362872552,1748502651472,-151.0,0.00021117,2]
[362872553,1748502651482,-151.0,0.00021117,2]
[362872554,1748502651491,-151.0,0.00021117,2]
[362872555,1748502651506,-151.0,0.00021117,2]
[362872556,1748502651515,-1200.0,0.0002114,2]
[362872557,1748502651525,-1000.0,0.0002114,2]
[362872558,1748502651535,-12660.97845086,0.00021144,2]
[362872559,1748502651544,-160.0,0.00021144,2]
[362872560,1748502651554,-842.5625,0.00021144,2]
[362872561,1748502651563,-212.70147903,0.00021144,2]
[362872562,1748502651572,-423.31762986,0.00021144,2]
[362872563,1748502651581,-160.0,0.00021144,2]
[362872564,1748502651590,-160.0,0.00021144,2]
[362872565,1748502651599,-160.0,0.00021144,2]
[362872566,1748502651608,-160.0,0.00021144,2]
[362872567,1748502651617,-229.26895353,0.00021144,2]
[362872568,1748502651626,-160.0,0.00021145,2]
[362872569,1748502651636,-160.0,0.00021153,2]
[362872570,1748502651645,-700.0,0.00021164,2]
[362872571,1748502651654,-448.1433307,0.00021279,5]
[362872572,1748502651664,-161.80893012,0.00021368,2]
[362872573,1748502651673,-212.70147903,0.00021368,3]
[362872574,1748502651682,-512.89,0.00021369,2]
[362872575,1748502651691,-835.93,0.00021369,2]
[362872576,1748502651700,-430.0,0.00021369,2]
[362872577,1748502651709,-430.0,0.00021369,2]
[362872578,1748502651718,-151.0,0.00021369,2]
[362872579,1748502651727,-151.0,0.00021369,2]
[362872580,1748502651736,-734.54,0.00021369,2]
[362872581,1748502651745,-151.0,0.00021369,2]
[362872582,1748502651754,-430.0,0.00021369,2]
[362872583,1748502651763,-430.0,0.00021369,2]
[362872584,1748502651772,-1868.89,0.00021369,2]
[362872585,1748502651781,-430.0,0.00021369,2]
[362872586,1748502651791,-430.0,0.00021369,2]
[362872587,1748502651800,-1175.42,0.00021369,2]